[Event "*** Titled Tuesday Blitz"]
[Site "Chess.com"]
[Date "2020.04.28"]
[Round "7"]
[White "Sanan_Sjugirov"]
[Black "GMKrikor"]
[Result "0-1"]
[WhiteElo "2849"]
[BlackElo "2746"]
[TimeControl "180+1"]
[EndTime "11:19:07 PDT"]
[Termination "GMKrikor won by resignation"]

1. e4 {[%clk 0:03:00.9]} 1... c5 {[%clk 0:02:59.4]} 2. Nf3 {[%clk 0:03:00.6]}
2... g6 {[%clk 0:02:59.9]} 3. c4 {[%clk 0:02:49.2]} 3... Nc6 {[%clk 0:02:59.3]}
4. d4 {[%clk 0:02:49.2]} 4... cxd4 {[%clk 0:03:00.2]} 5. Nxd4 {[%clk 0:02:50]}
5... Nf6 {[%clk 0:02:59.9]} 6. Nc3 {[%clk 0:02:48.9]} 6... d6 {[%clk 0:03:00.5]}
7. Be2 {[%clk 0:02:47.6]} 7... Nxd4 {[%clk 0:03:00.3]} 8. Qxd4 {[%clk
0:02:47.9]} 8... Bg7 {[%clk 0:02:59.9]} 9. Be3 {[%clk 0:02:43.5]} 9... O-O
{[%clk 0:02:58.6]} 10. Qd2 {[%clk 0:02:43.3]} 10... a5 {[%clk 0:02:58.7]} 11. f3
{[%clk 0:02:37.4]} 11... a4 {[%clk 0:02:49.5]} 12. Rc1 {[%clk 0:02:18.7]} 12...
Qa5 {[%clk 0:02:29]} 13. Kf2 {[%clk 0:02:14.8]} 13... Be6 {[%clk 0:02:19.5]} 14.
Nd5 {[%clk 0:02:11.2]} 14... Bxd5 {[%clk 0:02:07.2]} 15. Qxa5 {[%clk 0:02:07.3]}
15... Rxa5 {[%clk 0:02:08.1]} 16. cxd5 {[%clk 0:02:03.9]} 16... e6 {[%clk
0:01:43.5]} 17. Bd2 {[%clk 0:01:19.2]} 17... Raa8 {[%clk 0:01:37.2]} 18. Bb4
{[%clk 0:01:07.2]} 18... exd5 {[%clk 0:01:17.3]} 19. e5 {[%clk 0:00:53.1]} 19...
dxe5 {[%clk 0:01:15.9]} 20. Bxf8 {[%clk 0:00:52.7]} 20... Bxf8 {[%clk
0:01:03.7]} 21. a3 {[%clk 0:00:44]} 21... b6 {[%clk 0:01:02.6]} 22. Rc6 {[%clk
0:00:37.3]} 22... Bc5+ {[%clk 0:01:01.9]} 23. Ke1 {[%clk 0:00:37.5]} 23... Nh5
{[%clk 0:00:46.2]} 24. g3 {[%clk 0:00:34.6]} 24... Ng7 {[%clk 0:00:46.4]} 25.
Rc7 {[%clk 0:00:18.7]} 25... Rd8 {[%clk 0:00:31.8]} 26. Kd2 {[%clk 0:00:15.7]}
26... f5 {[%clk 0:00:27.3]} 27. Ba6 {[%clk 0:00:05.7]} 27... Ne6 {[%clk
0:00:26.2]} 28. Rc8 {[%clk 0:00:05.1]} 28... Rxc8 {[%clk 0:00:26.8]} 29. Bxc8
{[%clk 0:00:06]} 29... Nd4 {[%clk 0:00:27.7]} 30. Rf1 {[%clk 0:00:05.8]} 30...
Kf7 {[%clk 0:00:26.1]} 31. Bd7 {[%clk 0:00:05.6]} 31... b5 {[%clk 0:00:26.7]}
32. Bc8 {[%clk 0:00:04.4]} 32... Ke7 {[%clk 0:00:25]} 33. Kd3 {[%clk 0:00:02.6]}
33... Kd6 {[%clk 0:00:25.4]} 34. h4 {[%clk 0:00:01.8]} 34... e4+ {[%clk
0:00:25.7]} 35. fxe4 {[%clk 0:00:02.1]} 35... fxe4+ {[%clk 0:00:11.9]} 36. Kd2
{[%clk 0:00:03]} 36... Nb3+ {[%clk 0:00:07.4]} 37. Ke2 {[%clk 0:00:03.4]} 37...
d4 {[%clk 0:00:07.2]} 38. Bb7 {[%clk 0:00:03.3]} 38... d3+ {[%clk 0:00:06.8]}
39. Ke1 {[%clk 0:00:03]} 39... e3 {[%clk 0:00:04.9]} 40. Be4 {[%clk 0:00:03]}
40... Nc1 {[%clk 0:00:03.9]} 41. Bxd3 {[%clk 0:00:01.5]} 41... Nxd3+ {[%clk
0:00:04]} 42. Ke2 {[%clk 0:00:02.4]} 42... Nxb2 {[%clk 0:00:04.7]} 43. Rf6+
{[%clk 0:00:02]} 43... Kd5 {[%clk 0:00:04.6]} 44. Rf7 {[%clk 0:00:02.6]} 44...
Bxa3 {[%clk 0:00:04.9]} 45. Rxh7 {[%clk 0:00:02.9]} 45... Bc5 {[%clk 0:00:04.9]}
46. Rg7 {[%clk 0:00:03.3]} 46... a3 {[%clk 0:00:04.9]} 47. Rxg6 {[%clk
0:00:04.2]} 47... a2 {[%clk 0:00:05.3]} 48. Rg5+ {[%clk 0:00:05]} 48... Kc4
{[%clk 0:00:05.3]} 49. Rg4+ {[%clk 0:00:05.5]} 49... Bd4 {[%clk 0:00:05.6]} 0-1

[Event "*** Titled Tuesday Blitz"]
[Site "Chess.com"]
[Date "2020.04.28"]
[Round "7"]
[White "Grandelicious"]
[Black "Chess_Boxer123"]
[Result "1-0"]
[WhiteElo "2765"]
[BlackElo "2566"]
[TimeControl "180+1"]
[EndTime "11:19:07 PDT"]
[Termination "Grandelicious won by resignation"]

1. Nf3 {[%clk 0:03:00.9]} 1... d5 {[%clk 0:02:59.2]} 2. g3 {[%clk 0:03:00.9]}
2... Nf6 {[%clk 0:02:57.7]} 3. Bg2 {[%clk 0:03:00.9]} 3... Bf5 {[%clk
0:02:57.2]} 4. c4 {[%clk 0:02:59.7]} 4... c6 {[%clk 0:02:56.6]} 5. O-O {[%clk
0:02:59.3]} 5... e6 {[%clk 0:02:56.8]} 6. cxd5 {[%clk 0:02:55.2]} 6... exd5
{[%clk 0:02:55]} 7. d3 {[%clk 0:02:54.5]} 7... Nbd7 {[%clk 0:02:53.1]} 8. Nc3
{[%clk 0:02:51.5]} 8... h6 {[%clk 0:02:49.3]} 9. e4 {[%clk 0:02:50.4]} 9... Be6
{[%clk 0:02:46.1]} 10. exd5 {[%clk 0:02:46.6]} 10... Nxd5 {[%clk 0:02:44.3]} 11.
Nd4 {[%clk 0:02:47.1]} 11... Nc5 {[%clk 0:02:28.8]} 12. Nxe6 {[%clk 0:02:43.6]}
12... Nxe6 {[%clk 0:02:24.2]} 13. Nxd5 {[%clk 0:02:43.5]} 13... cxd5 {[%clk
0:02:24.2]} 14. Qa4+ {[%clk 0:02:40]} 14... Qd7 {[%clk 0:02:17.4]} 15. Qxd7+
{[%clk 0:02:39.9]} 15... Kxd7 {[%clk 0:02:18.3]} 16. Bxd5 {[%clk 0:02:40.6]}
16... Rb8 {[%clk 0:02:15.7]} 17. Be3 {[%clk 0:02:40.7]} 17... b6 {[%clk
0:02:15.3]} 18. Rfd1 {[%clk 0:02:37.4]} 18... Bd6 {[%clk 0:02:15.2]} 19. d4
{[%clk 0:02:26.9]} 19... Rhe8 {[%clk 0:02:10.5]} 20. Rac1 {[%clk 0:02:25.6]}
20... Rbc8 {[%clk 0:02:10.9]} 21. Kf1 {[%clk 0:02:21.6]} 21... h5 {[%clk
0:01:58.8]} 22. Bb7 {[%clk 0:02:10.3]} 22... Rc7 {[%clk 0:01:55.2]} 23. Rxc7+
{[%clk 0:02:06.9]} 23... Kxc7 {[%clk 0:01:54.6]} 24. Ba6 {[%clk 0:02:04]} 24...
g6 {[%clk 0:01:52]} 25. Rc1+ {[%clk 0:02:01]} 25... Kb8 {[%clk 0:01:51.1]} 26.
Bb5 {[%clk 0:01:59.9]} 26... Rd8 {[%clk 0:01:51.1]} 27. Bc4 {[%clk 0:01:55.3]}
27... Rc8 {[%clk 0:01:49.7]} 28. Ke2 {[%clk 0:01:39.6]} 28... Nxd4+ {[%clk
0:01:44]} 29. Bxd4 {[%clk 0:01:35.5]} 29... b5 {[%clk 0:01:44.3]} 30. Kd3 {[%clk
0:01:26.1]} 30... bxc4+ {[%clk 0:01:41.6]} 31. Rxc4 {[%clk 0:01:27]} 31... Re8
{[%clk 0:01:41.5]} 32. Ra4 {[%clk 0:01:25.8]} 32... Re7 {[%clk 0:01:39.6]} 33.
Ra6 {[%clk 0:01:25.3]} 33... Be5 {[%clk 0:01:36.2]} 34. Bxe5+ {[%clk 0:01:19.9]}
34... Rxe5 {[%clk 0:01:37.1]} 35. Rf6 {[%clk 0:01:20.5]} 35... Re7 {[%clk
0:01:36.5]} 36. f4 {[%clk 0:01:18.9]} 36... Kc7 {[%clk 0:01:32.1]} 37. f5 {[%clk
0:01:18.4]} 37... g5 {[%clk 0:01:15.4]} 38. h3 {[%clk 0:01:08.8]} 38... Rd7+
{[%clk 0:01:02.9]} 39. Ke3 {[%clk 0:01:06.8]} 39... Re7+ {[%clk 0:01:01.2]} 40.
Kf3 {[%clk 0:01:06.9]} 40... Rd7 {[%clk 0:00:58.9]} 41. Rh6 {[%clk 0:01:03]}
41... Rd5 {[%clk 0:00:52.1]} 42. Ke4 {[%clk 0:01:03]} 42... Rd2 {[%clk 0:00:42]}
43. Rxh5 {[%clk 0:01:03.2]} 43... Rxb2 {[%clk 0:00:41.4]} 44. a3 {[%clk
0:00:58.4]} 44... f6 {[%clk 0:00:35]} 45. Rh6 {[%clk 0:00:55.7]} 45... Rb3
{[%clk 0:00:31.9]} 46. g4 {[%clk 0:00:56]} 46... Rxa3 {[%clk 0:00:31.2]} 47.
Rxf6 {[%clk 0:00:56.3]} 47... Rxh3 {[%clk 0:00:30.8]} 48. Rg6 {[%clk 0:00:56.6]}
48... a5 {[%clk 0:00:30.9]} 49. f6 {[%clk 0:00:55.3]} 49... Kd6 {[%clk
0:00:28.7]} 50. Kf5 {[%clk 0:00:51.2]} 50... Rf3+ {[%clk 0:00:27.3]} 51. Kxg5
{[%clk 0:00:50.9]} 51... a4 {[%clk 0:00:28.2]} 52. Rg8 {[%clk 0:00:47.8]} 52...
a3 {[%clk 0:00:28.2]} 53. Kg6 {[%clk 0:00:41]} 53... a2 {[%clk 0:00:20.3]} 54.
Ra8 {[%clk 0:00:39.9]} 54... Rf2 {[%clk 0:00:20.5]} 55. g5 {[%clk 0:00:34.9]}
55... Ke6 {[%clk 0:00:20.7]} 56. Ra6+ {[%clk 0:00:34.8]} 56... Kd7 {[%clk
0:00:20.3]} 57. Kg7 {[%clk 0:00:33.9]} 57... Ke8 {[%clk 0:00:19.5]} 58. g6
{[%clk 0:00:33.2]} 58... Kd7 {[%clk 0:00:16.3]} 59. f7 {[%clk 0:00:33.1]} 1-0

[Event "*** Titled Tuesday Blitz"]
[Site "Chess.com"]
[Date "2020.04.28"]
[Round "7"]
[White "CMFernandez"]
[Black "Colombiano07"]
[Result "1-0"]
[WhiteElo "2077"]
[BlackElo "2206"]
[TimeControl "180+1"]
[EndTime "11:19:08 PDT"]
[Termination "CMFernandez won by resignation"]

1. d4 {[%clk 0:02:51.1]} 1... d5 {[%clk 0:02:59.6]} 2. c4 {[%clk 0:02:46.8]}
2... Bf5 {[%clk 0:02:59.5]} 3. Bf4 {[%clk 0:02:42.3]} 3... e6 {[%clk 0:02:59.1]}
4. Nc3 {[%clk 0:02:40.7]} 4... c6 {[%clk 0:02:59.1]} 5. Qb3 {[%clk 0:02:39.9]}
5... Qb6 {[%clk 0:02:58.5]} 6. c5 {[%clk 0:02:39.1]} 6... Qxb3 {[%clk
0:02:58.7]} 7. axb3 {[%clk 0:02:39.6]} 7... Na6 {[%clk 0:02:55.7]} 8. Na2 {[%clk
0:02:36.5]} 8... Nf6 {[%clk 0:02:53.3]} 9. e3 {[%clk 0:02:35.6]} 9... Be7 {[%clk
0:02:48.3]} 10. b4 {[%clk 0:02:16.8]} 10... Nh5 {[%clk 0:02:41.6]} 11. b5 {[%clk
0:02:16.5]} 11... Nxf4 {[%clk 0:02:38.9]} 12. bxa6 {[%clk 0:02:04]} 12... Nd3+
{[%clk 0:02:37.3]} 13. Bxd3 {[%clk 0:02:03.4]} 13... Bxd3 {[%clk 0:02:38.2]} 14.
axb7 {[%clk 0:02:03.7]} 14... Rb8 {[%clk 0:02:38.9]} 15. Nb4 {[%clk 0:02:04]}
15... Bb5 {[%clk 0:02:30.8]} 16. Rxa7 {[%clk 0:02:03.5]} 16... Kd7 {[%clk
0:02:29.9]} 17. Ne2 {[%clk 0:01:59.3]} 17... Kc7 {[%clk 0:02:14.2]} 18. Nc3
{[%clk 0:01:59.1]} 18... Bc4 {[%clk 0:02:05.6]} 19. b3 {[%clk 0:01:56.2]} 19...
Bxb3 {[%clk 0:01:39.7]} 20. Na6+ {[%clk 0:01:55.5]} 20... Kd7 {[%clk 0:01:40.3]}
21. Nxb8+ {[%clk 0:01:55.3]} 21... Rxb8 {[%clk 0:01:41.2]} 22. Kd2 {[%clk
0:01:55.4]} 22... Kc7 {[%clk 0:01:39.4]} 23. Rb1 {[%clk 0:01:54.5]} 23... Bc4
{[%clk 0:01:39.7]} 24. Rb6 {[%clk 0:01:37.4]} 24... e5 {[%clk 0:01:36.7]} 25.
Na4 {[%clk 0:01:29.6]} 25... f5 {[%clk 0:01:29.9]} 26. Nb2 {[%clk 0:01:27.5]}
26... Bf1 {[%clk 0:01:27]} 27. Nd3 {[%clk 0:01:18.6]} 27... Bxd3 {[%clk
0:01:16.4]} 28. Kxd3 {[%clk 0:01:18.2]} 28... f4 {[%clk 0:01:14.3]} 29. Ra8
{[%clk 0:01:09.2]} 29... Rxb7 {[%clk 0:01:12.6]} 30. Rxb7+ {[%clk 0:01:08.9]}
30... Kxb7 {[%clk 0:01:13.5]} 31. Re8 {[%clk 0:01:09.3]} 31... e4+ {[%clk
0:01:12.6]} 32. Ke2 {[%clk 0:01:06.6]} 32... Bf6 {[%clk 0:01:10.5]} 33. f3
{[%clk 0:01:01.6]} 33... exf3+ {[%clk 0:01:09.6]} 34. Kxf3 {[%clk 0:01:00.1]}
34... fxe3 {[%clk 0:01:10.5]} 35. Kxe3 {[%clk 0:01:00]} 35... Kc7 {[%clk
0:01:10.7]} 36. g4 {[%clk 0:00:55.2]} 36... Kd7 {[%clk 0:01:10.9]} 37. Rh8
{[%clk 0:00:53.8]} 37... h6 {[%clk 0:01:09.9]} 38. h3 {[%clk 0:00:53]} 38...
Bg5+ {[%clk 0:01:09.3]} 39. Kf3 {[%clk 0:00:52.3]} 39... Bf6 {[%clk 0:01:08.2]}
40. Ke3 {[%clk 0:00:52.1]} 40... Bg5+ {[%clk 0:01:08.5]} 41. Kd3 {[%clk
0:00:52.5]} 41... Bf6 {[%clk 0:01:09.4]} 42. Ra8 {[%clk 0:00:51.4]} 42... Be7
{[%clk 0:01:02.6]} 43. h4 {[%clk 0:00:48.1]} 43... Bxh4 {[%clk 0:01:01.7]} 44.
Ra7+ {[%clk 0:00:48.5]} 44... Ke6 {[%clk 0:00:59.9]} 45. Rxg7 {[%clk 0:00:48.9]}
45... Bg5 {[%clk 0:01:00.8]} 46. Rg6+ {[%clk 0:00:46.6]} 46... Kd7 {[%clk
0:01:00.5]} 47. Kc2 {[%clk 0:00:46.2]} 47... Be3 {[%clk 0:00:59.5]} 48. Kd3
{[%clk 0:00:46.4]} 48... Bg5 {[%clk 0:00:59.7]} 49. Rg7+ {[%clk 0:00:43.9]}
49... Kc8 {[%clk 0:00:59.8]} 50. Kc3 {[%clk 0:00:36.9]} 50... Be3 {[%clk
0:00:57.5]} 51. Kd3 {[%clk 0:00:36.7]} 51... Bg5 {[%clk 0:00:57.6]} 52. Rf7
{[%clk 0:00:34.9]} 52... Kd8 {[%clk 0:00:57.1]} 53. Rb7 {[%clk 0:00:34.3]} 53...
Kc8 {[%clk 0:00:57.2]} 54. Rf7 {[%clk 0:00:32.6]} 54... Kd8 {[%clk 0:00:57.4]}
55. Rh7 {[%clk 0:00:30.6]} 55... Kc8 {[%clk 0:00:57.6]} 56. Ra7 {[%clk 0:00:28]}
56... Kd8 {[%clk 0:00:57.2]} 57. Ra4 {[%clk 0:00:27.4]} 57... Kc7 {[%clk
0:00:55.6]} 58. Kc3 {[%clk 0:00:27.3]} 58... Kb7 {[%clk 0:00:55.4]} 59. Kb3
{[%clk 0:00:27]} 59... Be3 {[%clk 0:00:53.3]} 60. Rb4+ {[%clk 0:00:26.7]} 60...
Kc7 {[%clk 0:00:50.5]} 61. Ka4 {[%clk 0:00:26.7]} 61... Bd2 {[%clk 0:00:48.2]}
62. Rb3 {[%clk 0:00:25.7]} 62... Be1 {[%clk 0:00:47.2]} 63. Re3 {[%clk
0:00:23.6]} 63... Bf2 {[%clk 0:00:45.5]} 64. Rd3 {[%clk 0:00:23.1]} 64... Be1
{[%clk 0:00:44.4]} 65. Rd1 {[%clk 0:00:23.1]} 65... Bc3 {[%clk 0:00:43.6]} 66.
Kb3 {[%clk 0:00:22.7]} 66... Ba5 {[%clk 0:00:40.3]} 67. Kc2 {[%clk 0:00:22.8]}
67... Kd7 {[%clk 0:00:39.1]} 68. Rh1 {[%clk 0:00:22.6]} 1-0

[Event "*** Titled Tuesday Blitz"]
[Site "Chess.com"]
[Date "2020.04.28"]
[Round "7"]
[White "GHANDEEVAM2003"]
[Black "Barcelona_Guy"]
[Result "0-1"]
[WhiteElo "2843"]
[BlackElo "2742"]
[TimeControl "180+1"]
[EndTime "11:19:09 PDT"]
[Termination "Barcelona_Guy won by resignation"]

1. b3 {[%clk 0:03:00.9]} 1... d5 {[%clk 0:02:57.2]} 2. Bb2 {[%clk 0:03:01.4]}
2... c5 {[%clk 0:02:57.7]} 3. e3 {[%clk 0:03:01.3]} 3... Nf6 {[%clk 0:02:56.6]}
4. Nf3 {[%clk 0:03:00.3]} 4... e6 {[%clk 0:02:55.4]} 5. Ne5 {[%clk 0:02:59.3]}
5... Bd6 {[%clk 0:02:54]} 6. f4 {[%clk 0:02:57.3]} 6... O-O {[%clk 0:02:53.6]}
7. Be2 {[%clk 0:02:56]} 7... Nfd7 {[%clk 0:02:45.7]} 8. O-O {[%clk 0:02:53.6]}
8... Bxe5 {[%clk 0:02:43.4]} 9. fxe5 {[%clk 0:02:54.5]} 9... Qg5 {[%clk
0:02:41.2]} 10. Rf4 {[%clk 0:02:44.9]} 10... Nc6 {[%clk 0:02:38.5]} 11. h4
{[%clk 0:02:42]} 11... Qh6 {[%clk 0:02:25.6]} 12. c4 {[%clk 0:02:24.6]} 12...
Ndxe5 {[%clk 0:02:20.9]} 13. cxd5 {[%clk 0:02:15.2]} 13... exd5 {[%clk
0:02:21.8]} 14. Nc3 {[%clk 0:02:15.4]} 14... Ng6 {[%clk 0:02:13]} 15. Rf2 {[%clk
0:02:10.8]} 15... Qxh4 {[%clk 0:02:07.9]} 16. Nxd5 {[%clk 0:02:10.2]} 16... Be6
{[%clk 0:01:54.8]} 17. Nf4 {[%clk 0:01:56.9]} 17... Rad8 {[%clk 0:01:48.5]} 18.
Qc2 {[%clk 0:01:42.6]} 18... b6 {[%clk 0:01:29.4]} 19. Qc3 {[%clk 0:01:33]}
19... Qh6 {[%clk 0:01:17.4]} 20. Raf1 {[%clk 0:01:25.8]} 20... Nxf4 {[%clk
0:01:14.8]} 21. Rxf4 {[%clk 0:01:26.7]} 21... f6 {[%clk 0:01:08.1]} 22. d4
{[%clk 0:01:10.8]} 22... Nb4 {[%clk 0:01:04.4]} 23. Bc4 {[%clk 0:01:11.3]} 23...
Bxc4 {[%clk 0:00:59.9]} 24. Qxc4+ {[%clk 0:01:12.2]} 24... Kh8 {[%clk
0:01:00.5]} 25. dxc5 {[%clk 0:01:07]} 25... Nd3 {[%clk 0:01:00.2]} 26. Bd4
{[%clk 0:00:51.6]} 26... Nxf4 {[%clk 0:00:56.1]} 27. exf4 {[%clk 0:00:52.5]}
27... bxc5 {[%clk 0:00:52.9]} 28. Bxc5 {[%clk 0:00:53.4]} 28... Rfe8 {[%clk
0:00:52.9]} 29. Bxa7 {[%clk 0:00:53.7]} 29... Qg6 {[%clk 0:00:47.4]} 30. Bf2
{[%clk 0:00:50.5]} 30... Re4 {[%clk 0:00:38.6]} 31. Qc2 {[%clk 0:00:49.6]} 31...
Qe8 {[%clk 0:00:24.4]} 32. a4 {[%clk 0:00:44.9]} 32... Rxf4 {[%clk 0:00:23.2]}
33. a5 {[%clk 0:00:44]} 33... Qb5 {[%clk 0:00:20.6]} 34. Qc7 {[%clk 0:00:41.1]}
34... Qb8 {[%clk 0:00:20.5]} 35. Qxb8 {[%clk 0:00:19.7]} 35... Rxb8 {[%clk
0:00:21.4]} 36. a6 {[%clk 0:00:20.6]} 36... Rxb3 {[%clk 0:00:20.3]} 37. Ra1
{[%clk 0:00:18.3]} 37... Rfb4 {[%clk 0:00:18.5]} 38. Kh2 {[%clk 0:00:14]} 38...
Rb8 {[%clk 0:00:18.1]} 39. a7 {[%clk 0:00:13.8]} 39... Ra8 {[%clk 0:00:18.4]}
40. Rc1 {[%clk 0:00:13.5]} 40... Rb7 {[%clk 0:00:14]} 41. Rc6 {[%clk 0:00:13.9]}
41... h6 {[%clk 0:00:12.6]} 42. Ra6 {[%clk 0:00:14.4]} 42... Kh7 {[%clk
0:00:12.7]} 43. Kg3 {[%clk 0:00:13.8]} 43... Kg6 {[%clk 0:00:12.8]} 44. Kf3
{[%clk 0:00:14.4]} 44... Rb3+ {[%clk 0:00:12.9]} 45. Kf4 {[%clk 0:00:12.8]}
45... Rb2 {[%clk 0:00:13.1]} 46. Kf3 {[%clk 0:00:13.1]} 46... h5 {[%clk
0:00:12.7]} 47. g3 {[%clk 0:00:12.9]} 47... Rb3+ {[%clk 0:00:12.8]} 48. Be3
{[%clk 0:00:12.7]} 48... Kf7 {[%clk 0:00:11.7]} 49. Ke2 {[%clk 0:00:11.2]} 49...
Re8 {[%clk 0:00:10.2]} 50. a8=Q {[%clk 0:00:06.2]} 50... Rbxe3+ {[%clk
0:00:10.6]} 51. Kf2 {[%clk 0:00:06.2]} 51... Rxa8 {[%clk 0:00:11.5]} 52. Rxa8
{[%clk 0:00:06.6]} 52... Re5 {[%clk 0:00:10.8]} 0-1

[Event "*** Titled Tuesday Blitz"]
[Site "Chess.com"]
[Date "2020.04.28"]
[Round "7"]
[White "MichailovM"]
[Black "awesomevishesh"]
[Result "1-0"]
[WhiteElo "2398"]
[BlackElo "2497"]
[TimeControl "180+1"]
[EndTime "11:19:12 PDT"]
[Termination "MichailovM won on time"]

1. e4 {[%clk 0:03:00.5]} 1... c5 {[%clk 0:02:59.6]} 2. Nf3 {[%clk 0:03:00.4]}
2... d6 {[%clk 0:03:00]} 3. d4 {[%clk 0:03:00.5]} 3... cxd4 {[%clk 0:03:00.9]}
4. Nxd4 {[%clk 0:03:00.3]} 4... Nf6 {[%clk 0:03:01.4]} 5. Nc3 {[%clk 0:03:00.9]}
5... a6 {[%clk 0:03:02]} 6. Bg5 {[%clk 0:03:01.4]} 6... e6 {[%clk 0:03:02]} 7.
f4 {[%clk 0:03:01.9]} 7... h6 {[%clk 0:03:02]} 8. Bh4 {[%clk 0:03:01.8]} 8...
Qb6 {[%clk 0:03:02.4]} 9. Qd3 {[%clk 0:03:01]} 9... Qxb2 {[%clk 0:02:47]} 10.
Rb1 {[%clk 0:03:00.5]} 10... Qa3 {[%clk 0:02:46.9]} 11. f5 {[%clk 0:03:01.1]}
11... Be7 {[%clk 0:02:31.3]} 12. Be2 {[%clk 0:02:48.6]} 12... Nc6 {[%clk
0:02:09.1]} 13. fxe6 {[%clk 0:02:47.5]} 13... fxe6 {[%clk 0:02:07.9]} 14. Nxc6
{[%clk 0:02:29.4]} 14... bxc6 {[%clk 0:02:07.6]} 15. e5 {[%clk 0:01:47.4]} 15...
dxe5 {[%clk 0:01:55.4]} 16. Bf3 {[%clk 0:01:38.3]} 16... O-O {[%clk 0:01:28.3]}
17. O-O {[%clk 0:01:12.8]} 17... Nd5 {[%clk 0:01:13.4]} 18. Bxe7 {[%clk
0:00:45.8]} 18... Qxe7 {[%clk 0:01:12.3]} 19. Ne4 {[%clk 0:00:45.7]} 19... a5
{[%clk 0:01:04.8]} 20. Rf2 {[%clk 0:00:36.9]} 20... Ba6 {[%clk 0:01:03.2]} 21.
Qd2 {[%clk 0:00:35.6]} 21... Nf4 {[%clk 0:00:39.5]} 22. Qc3 {[%clk 0:00:29.2]}
22... Rab8 {[%clk 0:00:21]} 23. Re1 {[%clk 0:00:27.1]} 23... Qc7 {[%clk
0:00:17.8]} 24. Nc5 {[%clk 0:00:25.1]} 24... Bc8 {[%clk 0:00:14.1]} 25. Qxe5
{[%clk 0:00:15.6]} 25... Qxe5 {[%clk 0:00:13.4]} 26. Rxe5 {[%clk 0:00:16.5]}
26... Rb1+ {[%clk 0:00:12.9]} 27. Rf1 {[%clk 0:00:17.3]} 27... Rb2 {[%clk
0:00:08.7]} 28. g3 {[%clk 0:00:18.1]} 28... Nh3+ {[%clk 0:00:07.8]} 29. Kg2
{[%clk 0:00:18.7]} 29... Rxc2+ {[%clk 0:00:07.7]} 30. Kxh3 {[%clk 0:00:18.8]}
30... Rc3 {[%clk 0:00:04.8]} 31. Kg2 {[%clk 0:00:18.3]} 31... Rc2+ {[%clk
0:00:04.8]} 32. Rf2 {[%clk 0:00:19.1]} 32... Rc3 {[%clk 0:00:03.9]} 33. Bxc6
{[%clk 0:00:17.3]} 33... Rxf2+ {[%clk 0:00:03.3]} 34. Kxf2 {[%clk 0:00:18.2]}
34... Rc2+ {[%clk 0:00:03.4]} 35. Ke3 {[%clk 0:00:18.8]} 35... Rxa2 {[%clk
0:00:02.8]} 36. h4 {[%clk 0:00:19.3]} 36... a4 {[%clk 0:00:02.6]} 37. Bxa4
{[%clk 0:00:18.5]} 37... Ra3+ {[%clk 0:00:02.1]} 38. Kf4 {[%clk 0:00:18.6]}
38... Kf7 {[%clk 0:00:01.8]} 39. Bb3 {[%clk 0:00:19]} 39... Kf6 {[%clk
0:00:01.3]} 40. g4 {[%clk 0:00:17.5]} 40... g5+ {[%clk 0:00:01.2]} 41. hxg5+
{[%clk 0:00:18.4]} 41... hxg5+ {[%clk 0:00:02.1]} 42. Rxg5 {[%clk 0:00:18.3]}
42... Ra1 {[%clk 0:00:01.5]} 43. Ne4+ {[%clk 0:00:18]} 43... Ke7 {[%clk
0:00:01.4]} 44. Rc5 {[%clk 0:00:18.4]} 44... Rf1+ {[%clk 0:00:01.2]} 45. Ke3
{[%clk 0:00:18.4]} 45... Kd7 {[%clk 0:00:01.6]} 46. g5 {[%clk 0:00:17.8]} 46...
Rg1 {[%clk 0:00:01.9]} 47. Rc3 {[%clk 0:00:16]} 47... Rg4 {[%clk 0:00:01.9]} 48.
Nf6+ {[%clk 0:00:15.5]} 48... Kd6 {[%clk 0:00:02.1]} 49. Nxg4 {[%clk 0:00:16.4]}
1-0

[Event "*** Titled Tuesday Blitz"]
[Site "Chess.com"]
[Date "2020.04.28"]
[Round "7"]
[White "viktorskliarov"]
[Black "Lion-Al-Messi"]
[Result "0-1"]
[WhiteElo "2618"]
[BlackElo "2445"]
[TimeControl "180+1"]
[EndTime "11:19:13 PDT"]
[Termination "Lion-Al-Messi won by resignation"]

1. e4 {[%clk 0:03:00.9]} 1... b6 {[%clk 0:03:00.4]} 2. d4 {[%clk 0:03:00.7]}
2... Bb7 {[%clk 0:03:00.9]} 3. Bd3 {[%clk 0:03:01.4]} 3... e6 {[%clk 0:03:01.1]}
4. Qe2 {[%clk 0:03:01.5]} 4... d5 {[%clk 0:03:01.2]} 5. e5 {[%clk 0:03:01.6]}
5... c5 {[%clk 0:03:00.4]} 6. c3 {[%clk 0:03:01.8]} 6... Nc6 {[%clk 0:03:01]} 7.
Nf3 {[%clk 0:03:01.8]} 7... Nge7 {[%clk 0:03:01.4]} 8. O-O {[%clk 0:03:01]} 8...
Nf5 {[%clk 0:03:00.7]} 9. Bxf5 {[%clk 0:02:25.8]} 9... exf5 {[%clk 0:03:00.3]}
10. e6 {[%clk 0:02:26.4]} 10... f6 {[%clk 0:02:43.9]} 11. Nh4 {[%clk 0:02:08.3]}
11... Ne7 {[%clk 0:02:43.6]} 12. dxc5 {[%clk 0:01:38.5]} 12... bxc5 {[%clk
0:02:34.1]} 13. Nxf5 {[%clk 0:01:38.3]} 13... g6 {[%clk 0:02:16.3]} 14. Nxe7
{[%clk 0:01:25]} 14... Kxe7 {[%clk 0:02:17.2]} 15. Qb5 {[%clk 0:01:05]} 15...
Qc7 {[%clk 0:02:11.1]} 16. Be3 {[%clk 0:00:39.1]} 16... Kxe6 {[%clk 0:02:07]}
17. Re1 {[%clk 0:00:24.3]} 17... Kf7 {[%clk 0:02:06.5]} 18. Bf4 {[%clk
0:00:24.1]} 18... Qc6 {[%clk 0:02:01.4]} 19. Qa5 {[%clk 0:00:23.6]} 19... Bd6
{[%clk 0:01:58.6]} 20. Bxd6 {[%clk 0:00:22.8]} 20... Qxd6 {[%clk 0:01:59.5]} 21.
Na3 {[%clk 0:00:21.2]} 21... Rhe8 {[%clk 0:01:55.4]} 22. Nb5 {[%clk 0:00:21.2]}
22... Qc6 {[%clk 0:01:55.6]} 23. Nc7 {[%clk 0:00:20.4]} 23... d4 {[%clk
0:01:43.6]} 24. f3 {[%clk 0:00:20.1]} 24... Rxe1+ {[%clk 0:01:29.6]} 25. Rxe1
{[%clk 0:00:21]} 25... Rc8 {[%clk 0:01:09.7]} 26. Nb5 {[%clk 0:00:21.2]} 26...
Re8 {[%clk 0:00:59.6]} 27. Rxe8 {[%clk 0:00:19]} 27... Kxe8 {[%clk 0:01:00.2]}
28. Nxa7 {[%clk 0:00:18]} 28... Qe6 {[%clk 0:00:43.1]} 29. Qb5+ {[%clk 0:00:18]}
29... Kf8 {[%clk 0:00:42.8]} 30. Qxc5+ {[%clk 0:00:17.7]} 30... Kg7 {[%clk
0:00:41.4]} 31. Qc7+ {[%clk 0:00:16.2]} 31... Kh6 {[%clk 0:00:35.9]} 32. Qf4+
{[%clk 0:00:16.3]} 32... g5 {[%clk 0:00:35.6]} 33. Qd2 {[%clk 0:00:15.9]} 33...
d3 {[%clk 0:00:33.7]} 34. h4 {[%clk 0:00:12.9]} 34... Ba6 {[%clk 0:00:22.3]} 35.
hxg5+ {[%clk 0:00:12.3]} 35... fxg5 {[%clk 0:00:23.2]} 36. a4 {[%clk 0:00:10.6]}
36... Qb6+ {[%clk 0:00:23.2]} 37. Kh2 {[%clk 0:00:10]} 37... Qxa7 {[%clk
0:00:23]} 38. b4 {[%clk 0:00:09.9]} 38... Bc4 {[%clk 0:00:22.7]} 39. b5 {[%clk
0:00:10]} 39... Qc7+ {[%clk 0:00:22.8]} 40. Kg1 {[%clk 0:00:10]} 40... Qc5+
{[%clk 0:00:22.6]} 41. Kf1 {[%clk 0:00:09.2]} 41... Qa3 {[%clk 0:00:09]} 42. Kf2
{[%clk 0:00:07.3]} 42... Qxa4 {[%clk 0:00:08.3]} 43. f4 {[%clk 0:00:07.5]} 43...
Qxb5 {[%clk 0:00:06.9]} 44. fxg5+ {[%clk 0:00:06.6]} 44... Qxg5 {[%clk
0:00:07.8]} 45. Qb2 {[%clk 0:00:06.9]} 45... Qf4+ {[%clk 0:00:07.3]} 46. Kg1
{[%clk 0:00:07.4]} 46... Qe3+ {[%clk 0:00:07.3]} 47. Kh2 {[%clk 0:00:06.6]}
47... d2 {[%clk 0:00:07.6]} 48. Qb8 {[%clk 0:00:06.3]} 48... d1=Q {[%clk
0:00:05.5]} 49. Qf8+ {[%clk 0:00:06.8]} 49... Kg6 {[%clk 0:00:04.9]} 50. Qg8+
{[%clk 0:00:02.7]} 50... Bxg8 {[%clk 0:00:03.7]} 0-1